bitfinex-derivatives/quotes_ETHF0:USTF0_20250929
["timestamp","ask_amount","ask_price","bid_price","bid_amount"]
[1759167172735,0.7276297,4148.1,4148.0,1.2117]
[1759167172941,0.80732847,4148.1,4148.0,1.2117]
[1759167173138,0.0028797,4148.1,4148.0,1.64536]
[1759167173333,0.2939797,4148.1,4148.0,1.2117]
[1759167173539,0.5971797,4148.1,4148.0,1.2117]
[1759167173834,0.2939797,4148.1,4148.0,1.2117]
[1759167175851,0.4365297,4148.1,4148.0,1.2117]
[1759167176244,0.0028797,4148.1,4148.0,1.64536]
[1759167176442,0.4365297,4148.1,4148.0,1.2117]
[1759167177350,1.4594297,4148.1,4148.0,1.2117]
[1759167177742,0.715,4147.6,4147.5,1.2237]
[1759167177942,1.4566,4147.6,4147.5,1.2237]
[1759167178143,1.0016,4147.6,4147.5,1.2237]
[1759167178553,1.4566,4147.6,4147.5,1.2237]
[1759167178750,0.43375,4147.1,4147.0,1.65746]
[1759167179048,0.4365297,4148.1,4148.0,1.2339]
[1759167180448,1.0044297,4148.1,4148.0,1.2339]
[1759167180653,1.4594297,4148.1,4148.0,0.7623]
[1759167181252,1.0044297,4148.1,4148.0,0.7623]
[1759167181449,1.4594297,4148.1,4148.0,0.4612]
[1759167181751,0.0028797,4148.1,4148.0,1.66756]
[1759167184045,0.0028797,4148.1,4148.0,1.91356]
[1759167184648,0.4365297,4148.1,4148.0,1.2339]
[1759167184960,0.7178297,4148.1,4148.0,1.2339]
[1759167188255,0.4365297,4148.1,4148.0,1.2339]
[1759167188457,0.0028797,4148.1,4148.0,1.66756]
[1759167190161,0.4365297,4148.1,4148.0,1.66756]
[1759167190360,0.4365297,4148.1,4148.0,1.91356]
[1759167190957,0.7178297,4148.1,4148.0,1.2339]
[1759167191363,1.0044297,4148.1,4148.0,1.2339]
[1759167192066,1.0044297,4148.1,4148.0,1.66756]
[1759167192558,0.0028797,4148.1,4148.0,1.66756]
[1759167192763,0.44588,4148.8,4148.7,0.43359]
[1759167193063,0.44588,4148.8,4148.7,1.48759]
[1759167193768,0.44843407,4148.8,4148.7,1.48759]
[1759167194664,0.01485407,4148.8,4148.7,1.48759]
[1759167196762,0.01485407,4148.8,4148.7,6.48759]
[1759167198865,0.01485407,4148.8,4148.7,6.73359]
[1759167199267,0.01485407,4148.8,4148.7,1.73359]
[1759167205370,0.74512407,4148.8,4148.7,1.054]
[1759167205567,0.59465407,4148.8,4148.7,1.73359]
[1759167205870,1.02822407,4148.8,4148.7,1.73359]
[1759167206170,1.02822407,4148.8,4148.7,1.3]
[1759167206366,1.44162407,4148.8,4148.7,1.054]
[1759167206670,0.9932,4148.6,4148.1,0.4262]
[1759167206861,1.01348,4147.8,4147.7,0.2916]
[1759167207061,1.42688,4147.8,4147.7,0.7178]
[1759167207464,1.42688,4147.8,4147.1,1.30532819]
[1759167207465,0.4337,4147.6,4147.5,0.4715]
[1759167207670,1.4269,4147.6,4147.5,0.9638]
[1759167208362,1.4269,4147.6,4147.5,0.7178]
[1759167208562,0.43375,4147.1,4147.0,0.1697]
[1759167208767,1.42695,4147.1,4147.0,0.4262]
[1759167209170,1.42695,4147.1,4147.0,0.7178]
[1759167209365,0.43377,4146.9,4146.8,0.246]
[1759167209568,0.5798,4146.6,4146.5,1.15161]
[1759167209875,0.5798,4146.6,4146.5,1.61291]
[1759167210472,0.2967,4146.6,4146.5,1.61291]
[1759167211469,0.132,4147.5,4146.5,1.61291]
[1759167211470,0.73044,4147.3,4147.2,0.5841]
[1759167211672,0.73044,4147.3,4147.2,1.0103]
[1759167211861,1.01354,4147.3,4147.2,1.0103]
[1759167212066,1.42694,4147.3,4147.2,0.7178]
[1759167213067,0.9932,4147.3,4147.2,0.7178]
[1759167213272,0.2967,4147.3,4147.2,1.0103]
[1759167213472,0.5798,4147.3,4147.2,1.0103]
[1759167214272,0.9932,4147.3,4147.2,1.0103]
[1759167214469,0.2967,4146.9,4146.8,0.2916]
[1759167214674,1.42697,4146.9,4146.8,0.7178]
[1759167214871,0.9932,4146.9,4146.8,0.7178]
[1759167215073,0.5798,4146.9,4146.8,1.0103]
[1759167216469,0.4134,4146.8,4146.6,0.4262]
[1759167216662,0.2967,4146.4,4146.3,0.99553]
[1759167216868,0.5798,4146.4,4146.3,1.71423]
[1759167217072,0.2967,4146.4,4146.3,1.71423]
[1759167217663,0.73051,4146.6,4146.5,1.61291]
[1759167217876,0.2967,4146.6,4146.5,1.1791]
[1759167218067,0.7305,4146.6,4146.5,1.1791]
[1759167218783,1.42702,4146.4,4146.3,0.0241]
[1759167219777,1.42706,4146.1,4146.0,6.78e-06]
[1759167220074,1.42714,4145.3,4145.2,0.7178]
[1759167220580,1.42716,4145.1,4145.0,0.7178]
[1759167221077,1.43007362,4145.1,4145.0,0.72092927]
[1759167222478,1.43007362,4145.1,4145.0,0.00312927]
[1759167224575,1.43007362,4145.1,4145.0,0.29472927]
[1759167224783,1.43007362,4145.1,4145.0,0.72092927]
[1759167228787,1.43007362,4145.1,4145.0,0.00312927]
[1759167229086,0.73074,4144.3,4144.2,1.0344]
[1759167229277,0.43404,4144.4,4144.3,0.4262]
[1759167229477,0.43404,4144.4,4144.3,1.0103]
[1759167230194,0.73074,4144.4,4144.3,1.01331236]
[1759167230886,1.01384,4144.4,4144.3,1.01331236]
[1759167231086,1.42724,4144.4,4144.3,1.01331236]
[1759167231485,1.01384,4144.4,4144.3,1.01331236]
[1759167232083,1.08783362,4145.1,4144.5,0.43402]
[1759167232289,1.08783362,4145.1,4145.0,1.1791]
[1759167232290,1.01667362,4145.1,4145.0,1.1791]
[1759167232793,0.58271362,4145.1,4145.0,1.1791]
[1759167232987,0.00291362,4145.1,4145.0,6.61307]
[1759167233187,0.43389,4145.8,4145.7,0.5841]
[1759167233387,0.9932,4146.2,4146.1,0.2916]
[1759167233584,0.43385,4146.2,4146.1,1.0103]
[1759167234088,1.43515,4146.2,4146.1,1.0103]
[1759167234280,1.43756549,4146.2,4146.1,1.0103]
[1759167234482,1.01606549,4146.2,4146.1,1.0103]
[1759167234990,0.73296549,4146.2,4146.1,1.0103]
[1759167235182,0.71846549,4146.2,4146.1,1.0103]
[1759167235386,1.01546549,4146.2,4146.1,1.0103]
[1759167235587,1.43696549,4146.2,4146.1,1.0103]
[1759167236295,1.43696549,4146.2,4146.1,0.7178]
[1759167236596,0.71609,4145.8,4145.7,1.037]
[1759167236891,0.71607,4146.0,4145.9,1.037]
[1759167237885,0.43387,4146.0,4145.9,1.037]
[1759167238194,0.00241549,4146.2,4146.1,1.037]
[1759167239088,0.28461549,4146.2,4146.1,1.037]
[1759167239299,0.00241549,4146.2,4146.1,1.037]
[1759167240396,0.43626549,4146.2,4146.1,1.47086]
[1759167240701,0.00241549,4146.2,4146.1,1.47086]
[1759167241203,0.00241549,4146.2,4146.1,6.47086]
[1759167242601,1.08419,4147.9,4147.2,0.443]
[1759167242802,0.5792,4147.8,4147.7,1.037]
[1759167243099,1.08432,4147.4,4147.0,0.1663]
[1759167243287,1.08432,4147.4,4144.7,5.15662661]
[1759167243288,1.0007,4146.6,4146.5,0.7378]
[1759167243492,1.00337592,4146.6,4146.5,0.74067902]
[1759167243692,1.43717592,4146.6,4146.5,0.74067902]
[1759167244397,1.43717592,4146.6,4146.5,0.00287902]
[1759167246098,1.94842298,4146.6,4146.5,0.00287902]
[1759167249399,1.94842298,4146.6,4143.7,2.17055]
[1759167249400,0.71612,4145.5,4145.4,1.037]
[1759167249593,1.43462,4145.5,4145.4,1.037]
[1759167249989,1.01316,4145.1,4145.0,0.2948]
[1759167250188,1.01316,4145.1,4144.3,0.0241]
[1759167250189,0.2822,4144.8,4144.7,1.028]
[1759167250396,0.2822,4145.0,4144.9,1.47098]
[1759167250602,0.71617,4145.0,4144.9,1.47098]
[1759167250796,0.71617,4145.0,4144.9,1.037]
[1759167250991,1.01317,4145.0,4144.9,1.037]
[1759167251489,1.01317,4145.0,4144.7,0.00173417]
[1759167251490,1.43469,4144.8,4144.7,0.00173417]
[1759167251997,1.43469,4144.8,4144.3,0.0241]
[1759167251998,1.43473,4144.4,4144.3,0.0241]
[1759167252192,1.94621055,4144.4,4144.3,0.0241]
[1759167252397,0.43411,4143.7,4143.6,1.037]
[1759167252999,1.01331,4143.7,4143.6,1.03869209]
[1759167253297,1.43481,4143.7,4143.6,0.00169209]
[1759167255504,1.01331,4143.7,4143.6,1.01189209]
[1759167256001,1.01331,4143.7,4143.6,0.72029209]
[1759167256002,1.43401,4143.7,4143.6,0.72029209]
[1759167256207,1.43401,4143.7,4143.6,0.00169209]
[1759167257909,0.43412,4143.6,4143.1,0.0241]
[1759167258096,1.40656,4143.2,4143.1,0.0241]
[1759167258406,0.43419,4142.9,4142.7,0.43421]
[1759167258709,0.43419,4142.9,4142.8,0.5677]
[1759167258904,0.71289,4142.9,4142.8,0.5677]
[1759167259105,0.71579085,4142.9,4142.8,0.99335519]
[1759167259304,1.40949085,4142.9,4142.8,0.99335519]
[1759167259909,0.98879085,4142.9,4142.8,0.99335519]
[1759167260405,0.55460085,4142.9,4142.8,0.99335519]
[1759167262711,0.00290085,4142.9,4142.8,1.42755519]
[1759167263102,0.4207,4143.7,4142.8,1.42755519]
[1759167263103,0.43411,4143.7,4143.0,1.08544]
[1759167263301,0.43411,4143.7,4143.6,0.9915]
[1759167263616,0.71281,4143.7,4143.6,0.9915]
[1759167264208,0.71572827,4143.7,4143.6,0.9915]
[1759167264404,0.28161827,4143.7,4143.6,1.42562]
[1759167264610,0.00291827,4143.7,4143.6,1.42562]
[1759167264812,0.43702827,4143.7,4143.6,1.42562]
[1759167265306,0.00291827,4143.7,4143.6,1.42562]
[1759167265612,0.43702827,4143.7,4143.6,0.9915]
[1759167265812,0.97772827,4143.7,4143.6,0.6999]
[1759167266006,0.274,4143.4,4143.3,0.5369]
[1759167266207,0.43413,4143.5,4143.4,0.70244]
[1759167266415,0.43413,4143.5,4143.4,0.9534]
[1759167266616,0.97483,4143.5,4143.4,0.9534]
[1759167268109,0.5407,4143.5,4143.4,1.38754]
[1759167268309,0.97483,4143.5,4143.4,1.38754]
[1759167268513,0.97483,4143.5,4143.4,0.9534]
[1759167268719,1.38793,4143.5,4143.4,0.6848]
[1759167269018,0.97483,4143.5,4143.4,1.38754]
[1759167269709,0.97483,4143.5,4143.4,0.9534]
[1759167270516,0.97483,4143.5,4143.4,1.38754]
[1759167270817,0.97483,4143.5,4143.4,0.9534]
[1759167271511,0.97483,4143.5,4143.4,1.38754]
[1759167271715,0.5407,4143.5,4143.4,1.38754]
[1759167272013,0.97483,4143.5,4143.4,1.38754]
[1759167272609,0.97483,4143.5,4143.4,0.9534]
[1759167273211,1.38793,4143.5,4143.4,0.6848]
[1759167273410,0.84729,4142.9,4142.8,0.00185519]
[1759167273614,0.9538,4142.9,4142.8,0.27015519]
[1759167273816,0.274,4142.9,4142.8,1.38945519]
[1759167274216,0.70819,4142.9,4142.8,1.38945519]
[1759167274812,0.274,4143.3,4143.2,0.5369]
[1759167275117,0.70815,4143.3,4143.2,0.9534]
[1759167275614,0.97485,4143.3,4143.2,0.9534]
[1759167276518,0.43414,4143.4,4143.3,1.38755]
[1759167276718,0.43412,4143.6,4143.5,1.55503]
[1759167277406,0.00291827,4143.7,4143.6,0.97102]
[1759167277612,0.00291827,4143.7,4143.6,1.38752]
[1759167277809,0.43702827,4143.7,4143.6,0.9534]
[1759167278115,0.71102827,4143.7,4143.6,0.9534]
[1759167279319,1.39082827,4143.7,4143.6,0.9534]
[1759167279517,0.00291827,4143.7,4143.6,1.38752]
[1759167280613,0.00291827,4143.7,4143.6,6.38752]
[1759167281911,0.00291827,4143.7,4143.6,1.38752]
[1759167282111,0.97469,4144.8,4144.7,0.9534]
[1759167282418,1.48742263,4144.8,4144.7,0.9534]
[1759167282618,1.90052263,4144.8,4144.7,0.9534]
[1759167282820,1.90052263,4144.8,4144.7,0.6848]
[1759167283126,1.90237998,4144.8,4144.7,0.6848]
[1759167283422,1.38964735,4144.8,4144.7,0.6848]
[1759167286227,1.38781,4144.6,4144.5,0.4165]
[1759167287325,1.38781,4144.6,4144.5,0.6848]
[1759167289727,1.38781,4144.6,4144.5,1.1209]
[1759167289924,0.97471,4144.6,4144.5,1.1209]
[1759167290127,0.43401,4144.6,4144.5,1.55492]
[1759167290426,0.70801,4144.6,4144.5,1.1209]
[1759167290728,0.97471,4144.6,4144.5,1.1209]
[1759167293026,1.38781,4144.6,4144.5,1.1209]
[1759167293228,1.38784,4144.3,4144.2,0.0241]
[1759167294130,1.38784,4144.3,4144.2,0.6949]
[1759167295428,0.43411,4143.8,4143.7,0.5422]
[1759167295733,0.43411,4143.8,4143.7,1.39631]
[1759167296227,0.958,4144.3,4144.2,0.2749]
[1759167296426,0.958,4144.3,4144.2,0.6949]
[1759167297231,1.39204,4144.3,4144.2,0.6949]
[1759167298138,0.70334,4144.3,4144.2,0.9622]
[1759167298333,0.43404,4144.3,4144.2,0.9622]
[1759167299334,0.43584735,4144.8,4144.7,0.42]
[1759167299635,0.43584735,4144.8,4144.7,1.3962]
[1759167300632,0.43584735,4144.8,4144.7,0.9622]
[1759167300827,0.70514735,4144.8,4144.7,0.9622]
[1759167302329,1.36981,4144.6,4144.5,0.42]
[1759167302530,1.36981,4144.6,4144.5,0.6949]
[1759167302937,0.97891,4144.6,4144.5,1.1224]
[1759167303636,0.70336,4144.1,4144.0,0.7024]
[1759167303833,0.70336,4144.1,4144.0,1.55648]
[1759167304236,0.2693,4144.1,4144.0,1.55648]
[1759167304430,0.2693,4144.3,4144.2,1.39625]
[1759167304636,0.54675735,4144.8,4144.7,0.9622]
[1759167304831,0.98074735,4144.8,4144.7,0.9622]
[1759167305233,0.97891,4144.6,4144.5,0.6949]
[1759167305438,0.70336,4144.1,4144.0,1.1224]
[1759167305738,1.36988,4144.0,4143.9,0.0241]
[1759167306043,1.48998,4144.0,4143.9,0.0241]
[1759167306238,2.00293173,4144.0,4143.9,0.0241]
[1759167308338,1.21633173,4144.0,4143.9,0.9863]
[1759167308542,0.94703173,4144.0,4143.9,0.9863]
[1759167308740,0.43408,4144.0,4143.9,0.9863]
[1759167310539,1.36988,4144.0,4143.9,0.0241]
[1759167310743,2.00296681,4144.0,4143.9,0.0241]
[1759167311147,2.24896681,4144.0,4143.9,0.0241]
[1759167312242,2.12886681,4144.0,4143.9,0.719]
[1759167312446,1.22498,4144.0,4143.9,0.9863]
[1759167312634,0.70338,4144.0,4143.9,0.9863]
[1759167312846,0.43405,4144.2,4144.1,0.5422]
[1759167313046,0.43404,4144.3,4144.2,0.97624]
[1759167313453,0.43404,4144.3,4144.2,1.39624]
[1759167313953,0.5153,4144.7,4144.6,0.9517]
[1759167314150,0.43584735,4144.8,4144.7,0.9661]
[1759167314352,0.00185735,4144.8,4144.7,1.4001]
[1759167314555,0.00185735,4144.8,4144.7,5.9661]
[1759167315443,0.55105735,4144.8,4144.7,0.9661]
[1759167316250,0.26845735,4144.8,4144.7,0.9661]
[1759167317053,0.00185735,4144.8,4144.7,0.9661]
[1759167317459,0.26845735,4144.8,4144.7,0.9661]
[1759167317646,0.55105735,4144.8,4144.7,0.9661]
[1759167318658,0.94775735,4144.8,4144.7,0.9661]
[1759167319261,0.55105735,4144.8,4144.7,0.9661]
[1759167320155,0.00185735,4144.8,4144.7,1.4001]
[1759167320361,0.43584735,4144.8,4144.7,1.4001]
[1759167321962,0.43584735,4144.8,4144.7,0.9661]
[1759167323362,0.00185735,4144.8,4144.7,1.4001]
[1759167323862,0.43584735,4144.8,4144.7,1.4001]
[1759167324065,0.00185735,4144.8,4144.7,1.4001]
[1759167324961,0.44817,4145.4,4145.3,0.979]
[1759167325159,0.71487,4145.4,4145.3,0.979]
[1759167325367,0.99557,4145.4,4145.3,0.979]
[1759167325863,0.99802536,4145.4,4145.3,0.979]
[1759167326062,1.40852536,4145.4,4145.3,0.6997]
[1759167326258,1.40852536,4145.4,4144.6,0.979]
[1759167326259,0.7007,4144.7,4144.6,0.979]
[1759167327264,0.9814,4144.7,4144.6,0.979]
[1759167327667,0.7007,4144.7,4144.6,0.979]
[1759167328065,1.39191,4144.6,4144.5,1e-05]
[1759167328363,0.9579,4143.6,4143.5,0.6997]
[1759167328563,0.5474,4143.6,4143.5,0.979]
[1759167328870,0.2667,4143.6,4143.5,1.1359]
[1759167333670,0.4341,4143.8,4143.7,0.5604]
[1759167333973,0.4341,4143.8,4143.7,0.979]
[1759167334471,0.2667,4143.2,4143.1,0.979]
[1759167334871,0.70086,4143.2,4143.1,0.979]
[1759167335070,0.43416,4143.2,4143.1,0.979]
[1759167335772,0.43416,4143.3,4143.2,0.979]
[1759167337374,0.70086,4143.3,4143.2,0.979]
[1759167337569,0.43418,4143.0,4142.9,0.4186]
[1759167337774,1.39208,4143.0,4142.9,0.4186]
[1759167337979,1.39209,4142.9,4142.8,0.00185519]
[1759167339473,0.70097,4142.1,4142.0,0.438]
[1759167339672,0.98167,4142.1,4142.0,0.7173]
[1759167339974,0.98167,4142.1,4142.0,1.1359]
[1759167340276,1.39217,4142.1,4142.0,0.6997]
[1759167340576,1.39505355,4142.1,4142.0,0.70143101]
[1759167341970,1.39505355,4142.1,4142.0,0.00173101]
[1759167344177,1.39505355,4142.1,4142.0,0.42033101]
[1759167344681,1.39505355,4142.1,4142.0,0.70143101]
[1759167346373,0.98455355,4142.1,4142.0,1.13763101]
[1759167347075,0.98455355,4142.1,4142.0,1.57191101]
[1759167347076,0.43715355,4142.1,4142.0,1.57191101]
[1759167347270,0.00288355,4142.1,4142.0,1.57191101]
[1759167347976,0.43715355,4142.1,4142.0,1.57191101]
[1759167348181,0.70385355,4142.1,4142.0,1.57191101]
[1759167348682,0.70385355,4142.1,4142.0,1.13763101]
[1759167349184,0.26958355,4142.1,4142.0,1.57191101]
[1759167349680,0.70385355,4142.1,4142.0,1.57191101]
[1759167350678,0.26958355,4142.1,4142.0,1.57191101]
[1759167350981,0.00288355,4142.1,4142.0,1.57191101]
[1759167351277,0.43414,4143.4,4143.3,0.5604]
[1759167351488,0.43414,4143.4,4143.3,0.979]
[1759167352282,0.43699763,4143.4,4143.3,0.979]
[1759167352684,0.00285763,4143.4,4143.3,0.979]
[1759167357188,0.53325763,4143.4,4143.3,0.979]
[1759167357387,0.91655763,4143.4,4143.3,0.6997]
[1759167359189,1.35069763,4143.4,4143.3,0.6997]
[1759167360489,1.35069763,4143.4,4143.3,0.9726]
[1759167361904,0.96739763,4143.4,4143.3,0.9726]
[1759167362588,0.27455763,4143.4,4143.3,0.9726]
[1759167362794,0.70869763,4143.4,4143.3,0.9726]
[1759167363586,0.70869763,4143.4,4143.3,1.40675]
[1759167363587,0.00285763,4143.4,4143.3,1.40675]
[1759167363889,0.43699763,4143.4,4143.3,1.40675]
[1759167364493,0.00285763,4143.4,4143.3,1.40675]
[1759167364686,0.43699763,4143.4,4143.3,1.40675]
[1759167365086,0.43699763,4143.4,4143.3,0.9726]
[1759167365486,0.70869763,4143.4,4143.3,0.9726]
[1759167366297,0.70869763,4143.4,4143.3,1.40675]
[1759167366995,0.00285763,4143.4,4143.3,1.40675]
[1759167368385,0.43699763,4143.4,4143.3,1.40675]
[1759167369993,0.70869763,4143.4,4143.3,1.40675]
[1759167370392,0.43699763,4143.4,4143.3,1.40675]
[1759167370793,0.00285763,4143.4,4143.3,1.40675]
[1759167375300,0.708,4144.7,4144.6,0.9013]
[1759167375490,0.9825,4144.7,4144.6,0.9013]
[1759167375893,1.3936,4144.7,4144.6,0.6327]
[1759167376093,1.90637079,4144.7,4144.6,0.6327]
[1759167377202,1.90637079,4144.7,4144.6,0.3828]
[1759167377793,0.9596,4144.1,4143.0,2.97352999]
[1759167378097,1.3937,4143.7,4143.6,0.6327]
[1759167378296,1.0851,4144.4,4143.2,0.68406]
[1759167378297,0.274,4143.3,4143.2,0.68406]
[1759167378498,0.5485,4143.3,4143.2,0.95266]
[1759167378898,0.5485,4143.3,4143.2,1.33546]
[1759167379298,0.98265,4143.3,4143.2,1.33546]
[1759167379796,1.39375,4143.3,4143.2,0.9013]
[1759167380604,0.98265,4143.3,4143.2,0.9013]
[1759167381802,0.98265,4143.3,4143.2,1.33546]
[1759167382001,0.98265,4143.3,4143.2,0.9013]
[1759167382903,1.39375,4143.3,4143.2,0.9013]
[1759167383907,0.98265,4143.3,4143.2,0.9013]
[1759167384405,0.98265,4143.3,4143.2,1.33546]
[1759167384704,0.246,4144.1,4143.0,0.1569]
[1759167384705,1.46524,4144.2,4143.0,0.1569]
[1759167385008,1.33785,4144.2,4144.1,0.9491]
[1759167385200,1.20873095,4144.2,4144.1,0.9491]
[1759167385401,0.94563095,4144.2,4144.1,1.38316]
[1759167385609,0.43405,4144.2,4144.1,1.38316]
[1759167386202,0.43405,4144.2,4144.1,0.9491]
[1759167386801,0.43405,4144.2,4144.1,1.38316]
[1759167387410,0.43405,4144.2,4144.1,0.9491]
[1759167387708,0.69715,4144.2,4144.1,1.38316]
[1759167387911,0.43405,4144.2,4144.1,1.38316]
[1759167388500,0.6261,4144.8,4144.1,0.5401]
[1759167388706,0.95995257,4144.7,4144.6,0.9491]
[1759167388912,1.03735314,4144.7,4144.6,1.38311]
[1759167389208,0.69935257,4144.7,4144.6,0.9491]
[1759167391520,0.00225257,4144.7,4144.6,1.38311]
[1759167391718,0.43625257,4144.7,4144.6,1.38311]
[1759167392613,0.00225257,4144.7,4144.6,1.38311]
[1759167393205,0.00225257,4144.7,4144.6,6.38311]
[1759167393910,0.00225257,4144.7,4144.6,6.62911]
[1759167394109,0.01418,4145.5,4145.4,1.38303]
[1759167394507,0.2631,4146.7,4146.6,0.5401]
[1759167394706,1.20779276,4146.7,4146.6,0.9491]
[1759167395021,0.95936093,4146.7,4146.6,0.95092929]
[1759167395221,1.33946093,4146.7,4146.6,0.95092929]
[1759167395422,1.33946093,4146.7,4146.6,0.00182929]
[1759167396111,1.33946093,4146.7,4146.6,0.41082929]
[1759167396309,1.33946093,4146.7,4146.6,0.67452929]
[1759167396809,0.43566093,4146.7,4146.6,0.95092929]
[1759167397310,0.95936093,4146.7,4146.6,0.95092929]
[1759167397516,0.26497093,4146.7,4146.6,0.95092929]
[1759167397708,0.00187093,4146.7,4146.6,0.95092929]
[1759167402119,0.43566093,4146.7,4146.6,0.95092929]
[1759167402815,0.95936093,4146.7,4146.6,0.95092929]
[1759167403822,0.69876093,4146.7,4146.6,0.95092929]
[1759167405023,0.43566093,4146.7,4146.6,0.95092929]
[1759167405318,0.69876093,4146.7,4146.6,0.95092929]
[1759167407513,0.00187093,4146.7,4146.6,1.38472929]
[1759167408116,0.43566093,4146.7,4146.6,1.38472929]
[1759167408316,0.43566093,4146.7,4146.6,0.95092929]
[1759167408909,0.69876093,4146.7,4146.6,0.95092929]
[1759167409126,0.95936093,4146.7,4146.6,0.95092929]
[1759167409425,1.33946093,4146.7,4146.6,0.95092929]
[1759167409725,6.33946093,4146.7,4146.6,0.00182929]
[1759167410115,1.33762,4146.4,4146.3,0.0241]
[1759167410623,47.13762,4146.4,4146.3,0.0241]
[1759167410826,0.5237,4145.9,4145.8,0.2637]
[1759167411015,0.69706,4145.1,4145.0,1.1044]
[1759167411216,0.69706,4145.1,4145.0,1.10694376]
[1759167411416,0.43396,4145.1,4145.0,1.10694376]
[1759167411617,0.95761,4145.6,4145.5,1.1044]
[1759167412424,1.33771,4145.6,4145.5,1.1044]
[1759167412625,1.33771,4145.6,4145.5,0.6727]
[1759167412825,0.69706,4145.1,4145.0,1.10694376]
[1759167413026,1.33776,4145.1,4145.0,0.67524376]
[1759167413727,1.33776,4145.1,4145.0,0.00254376]
[1759167414528,0.69706,4145.1,4145.0,1.09484376]
[1759167414726,1.35056,4145.1,4145.0,1.09484376]
[1759167415619,1.35056,4145.1,4145.0,0.00254376]
[1759167416025,1.35056,4145.1,4145.0,1.08494376]
[1759167416225,1.35056,4145.1,4145.0,0.65314376]
[1759167416523,1.35056,4145.1,4145.0,0.00254376]
[1759167416921,1.35056,4145.1,4145.0,0.25634376]
[1759167417228,1.35056,4145.1,4145.0,0.65314376]
[1759167418529,1.35056,4145.1,4145.0,0.81064376]
[1759167418827,1.35056,4145.1,4145.0,1.08494376]
[1759167418828,0.5288,4145.1,4145.0,1.08494376]
[1759167419034,0.2589,4145.5,4145.4,0.9249]
[1759167419229,0.69282,4145.5,4145.4,0.9249]
[1759167419429,0.95852,4145.5,4145.4,0.9249]
[1759167420432,0.43389,4145.8,4145.7,0.3968]
[1759167420630,0.69273,4146.3,4146.2,0.9249]
[1759167421127,0.69273,4146.3,4146.2,1.35874]
[1759167421326,0.69273,4146.3,4146.2,0.9249]
[1759167421734,0.95843,4146.3,4146.2,0.9249]
[1759167421928,1.34623,4146.3,4146.2,0.9249]
[1759167423334,0.95843,4146.3,4146.2,0.9249]
[1759167423633,1.34623,4146.3,4146.2,0.9249]
[1759167425733,0.95843,4146.3,4146.2,1.35874]
[1759167426532,0.69273,4146.3,4146.2,0.9249]
[1759167427037,1.34623,4146.3,4146.2,0.6506]
[1759167427231,0.95849,4145.7,4145.6,0.3968]
[1759167427425,0.95849,4145.7,4145.6,1.35881]
[1759167427736,0.2589,4145.7,4145.6,1.35881]
[1759167427930,0.69273,4146.3,4146.2,0.2538]
[1759167428237,0.69273,4146.3,4146.2,0.9249]
[1759167428940,0.43383,4146.3,4146.2,0.9249]
[1759167429132,0.95843,4146.3,4146.2,0.9249]
[1759167432043,0.5246,4145.7,4145.6,0.2538]
[1759167432232,0.5246,4145.7,4145.6,0.9249]
[1759167432432,1.34629,4145.7,4145.6,0.9249]
[1759167432637,1.34629,4145.7,4145.0,0.16004376]
[1759167432638,0.9124,4145.4,4145.3,0.6506]
[1759167432938,1.34633,4145.4,4145.3,0.6506]
[1759167433246,0.95853,4145.4,4145.3,0.9249]
[1759167433535,0.43391,4145.6,4145.3,0.9249]
[1759167433740,0.43391,4145.6,4145.5,1.0824]
[1759167434133,0.93681,4145.6,4145.5,1.0824]
[1759167434533,1.29891,4145.6,4145.5,1.0824]
[1759167435343,0.93681,4145.6,4145.5,1.0824]
[1759167435740,0.93681,4145.6,4145.0,1.01334376]
[1759167435741,0.69256,4145.1,4145.0,1.01334376]
[1759167435946,0.93686,4145.1,4145.0,1.01334376]
[1759167436741,0.69256,4145.1,4145.0,1.01334376]
[1759167436945,0.69256,4145.1,4145.0,1.44731376]
[1759167437146,0.69256,4145.1,4145.0,1.01334376]
[1759167437349,1.29896,4145.1,4145.0,1.01334376]
[1759167437742,0.93686,4145.1,4145.0,1.01334376]
[1759167438744,0.2586,4145.5,4145.4,0.4843]
[1759167438945,0.69252,4145.5,4145.4,0.8533]
[1759167439145,0.93682,4145.5,4145.4,0.8533]
[1759167440155,0.69252,4145.5,4145.4,0.8533]
[1759167440843,0.93682,4145.5,4145.4,0.8533]
[1759167441961,0.43392,4145.5,4145.4,0.8533]
[1759167442253,0.3621,4146.2,4145.4,0.4843]
[1759167442254,1.08461,4146.2,4145.4,0.4843]
[1759167442554,0.69244,4146.2,4146.1,0.8533]
[1759167442743,0.69244,4146.2,4146.0,0.1575]
[1759167442744,0.62744805,4146.5,4146.4,0.8533]
[1759167443255,1.13034805,4146.5,4146.4,0.8533]
[1759167443441,0.3621,4146.4,4146.0,0.4007]
[1759167443646,0.62744805,4146.5,4146.4,0.4843]
[1759167444059,0.62744805,4146.5,4146.4,0.8533]
[1759167444260,0.43381,4146.5,4146.4,0.8533]
[1759167444464,0.93731,4146.5,4146.4,0.8533]
[1759167444656,0.94275,4146.1,4146.0,0.6567]
[1759167445261,0.94275,4146.1,4146.0,1.022]
[1759167445560,0.43385,4146.1,4146.0,1.022]
[1759167446256,0.69785,4146.1,4146.0,1.022]
[1759167449466,0.43385,4146.1,4146.0,1.022]
[1759167449968,0.69785,4146.1,4146.0,1.022]
[1759167450761,0.94275,4146.1,4146.0,1.022]
[1759167452564,1.33635,4146.1,4146.0,1.022]
[1759167452769,1.3364,4145.6,4145.5,1.022]
[1759167452969,1.3364,4145.6,4145.0,0.16004376]
[1759167452970,1.33646,4145.1,4145.0,1.02454376]
[1759167453173,0.94286,4145.1,4145.0,1.02454376]
[1759167453370,0.43396,4145.1,4145.0,1.02454376]
[1759167453566,0.264,4145.7,4145.6,0.8645]
[1759167453773,0.69789,4145.7,4145.6,0.8645]